[Event "EYCC Girls-U18 2019"]
[Site "Bratislava"]
[Date "2019.08.07"]
[Round "6.1"]
[White "Badelka, Olga"]
[Black "Sliwicka, Alicja"]
[Result "1-0"]
[ECO "D32"]
[WhiteElo "2386"]
[BlackElo "2261"]
[Annotator "NA"]
[PlyCount "143"]
[EventDate "2019.08.02"]
[EventType "swiss"]
[EventCountry "SVK"]
[SourceTitle "playchess.com"]
[Source "ChessBase"]
[SourceQuality "1"]
[TimeControl "40/5400+30:1800+30"]

1. Nf3 {[%emt 0:00:00]} d5 {[%emt 0:00:00]} 2. c4 {[%emt 0:02:24]} e6 {[%emt 0:00:02]} 3. d4 {[%emt 0:03:17]} c5 {[%emt 0:00:10]} 4. cxd5 {[%emt 0:00:32]} exd5 {[%emt 0:00:07]} 5. Nc3 {[%emt 0:00:16]} Nc6 {[%emt 0:00:17]} 6. dxc5 {[%emt 0:02:22]} d4 {[%emt 0:14:31]} 7. Na4 {[%emt 0:00:05]} Bxc5 {[%emt 0:08:53]} 8. Nxc5 {[%emt 0:00:06]} Qa5+ {[%emt 0:00:07]} 9. Bd2 {[%emt 0:00:05]} Qxc5 {[%emt 0:00:04]} 10. g3 {[%emt 0:04:19]} Nf6 {[%emt 0:02:34]} 11. Bg2 {[%emt 0:00:16]} O-O {[%emt 0:01:14]} 12. O-O {[%emt 0:00:25]} Be6 {[%emt 0:07:13]} 13. Rc1 {[%emt 0:11:30]} Qb5 {[%emt 0:07:06]} 14. a4 {[%emt 0:15:22]} Qb3 {[%emt 0:08:13]} 15. Qxb3 {[%emt 0:02:14]} Bxb3 {[%emt 0:00:08]} 16. a5 {[%emt 0:00:15]} a6 {[%emt 0:06:00]} 17. Bg5 {[%emt 0:11:19]} Ne4 {[%emt 0:04:41]} 18. Bf4 {[%emt 0:05:13]} f6 {[%emt 0:06:28]} 19. Bc7 {[%emt 0:06:48]} Rf7 {[%emt 0:03:12]} 20. Bb6 {[%emt 0:00:15]} Rd7 {[%emt 0:03:22]} 21. Bh3 {[%emt 0:01:07]} Re7 {[%emt 0:01:13]} 22. Nxd4 {[%emt 0:06:03]} Nxd4 {[%emt 0:00:07]} 23. Bxd4 {[%emt 0:00:03]} Nd2 {[%emt 0:03:05]} 24. Rfe1 {[%emt 0:00:05]} Rae8 {[%emt 0:00:47]} 25. Bc3 {[%emt 0:02:51]} Nc4 {[%emt 0:03:22]} 26. Bb4 {[%emt 0:03:49]} Re4 {[%emt 0:06:20]} 27. Bg2 {[%emt 0:01:23]} Rd4 {[%emt 0:00:06]} 28. Bxb7 {[%emt 0:07:35]} Rb8 {[%emt 0:00:13]} 29. Bc3 {[%emt 0:02:40]} Rd6 {[%emt 0:00:28]} 30. Be4 {[%emt 0:00:38]} Kf7 {[%emt 0:03:55]} 31. Bd3 {[%emt 0:01:10]} Rd5 {[%emt 0:02:04]} 32. Ra1 {[%emt 0:03:50]} Re8 {[%emt 0:02:23]} 33. Rec1 {[%emt 0:00:21]} Re6 {[%emt 0:01:43]} 34. Bxf6 {[%emt 0:04:47]} Kxf6 {[%emt 0:03:47]} 35. Rxc4 {[%emt 0:00:51]} Bxc4 {[%emt 0:00:34]} 36. Bxc4 {[%emt 0:00:03]} Rd2 {[%emt 0:00:11]} 37. Bxe6 {[%emt 0:00:04]} Kxe6 {[%emt 0:00:03]} 38. Rc1 {[%emt 0:02:47]} Kd7 {[%emt 0:01:21]} 39. e4 {[%emt 0:01:12]} Rxb2 {[%emt 0:00:06]} 40. Kg2 {[%emt 0:00:00]} Rb5 {[%emt 0:00:00]} 41. Ra1 {[%emt 0:01:08]} Ke6 {[%emt 0:02:14]} 42. f4 {[%emt 0:02:30]} g5 {[%emt 0:05:36]} 43. Kf3 {[%emt 0:01:21]} h5 {[%emt 0:00:29]} 44. fxg5 {[%emt 0:05:11]} Rxg5 {[%emt 0:00:28]} 45. h3 {[%emt 0:02:06]} Rb5 {[%emt 0:01:29]} 46. Kf4 {[%emt 0:00:05]} Kf6 {[%emt 0:01:42]} 47. g4 {[%emt 0:00:49]} hxg4 {[%emt 0:01:57]} 48. hxg4 {[%emt 0:00:09]} Rc5 {[%emt 0:00:47]} 49. Rb1 {[%emt 0:13:07]} Rxa5 {[%emt 0:00:06]} 50. Rb6+ {[%emt 0:00:02]} Kf7 {[%emt 0:01:19]} 51. e5 {[%emt 0:00:53]} Ra1 {[%emt 0:00:21]} 52. Rf6+ {[%emt 0:00:51]} Ke7 {[%emt 0:01:51]} 53. Kf5 {[%emt 0:03:21]} a5 {[%emt 0:01:21]} 54. Ra6 {[%emt 0:01:09]} a4 {[%emt 0:04:33]} 55. Ra7+ {[%emt 0:00:45]} Kf8 {[%emt 0:00:19]} 56. g5 {[%emt 0:00:19]} a3 {[%emt 0:00:53]} 57. Kg6 {[%emt 0:02:55]} Ra2 {[%emt 0:02:45]} 58. e6 {[%emt 0:01:15]} Ra1 {[%emt 0:01:58]} 59. e7+ {[%emt 0:01:49]} Ke8 {[%emt 0:00:04]} 60. Kg7 {[%emt 0:00:17]} Ra2 {[%emt 0:01:57]} 61. g6 {[%emt 0:00:54]} Ra1 {[%emt 0:00:39]} 62. Kg8 {[%emt 0:00:12]} Ra2 {[%emt 0:01:10]} 63. g7 {[%emt 0:00:27]} Ra1 {[%emt 0:09:28]} 64. Kh7 {[%emt 0:00:03]} Rh1+ {[%emt 0:00:05]} 65. Kg6 {[%emt 0:00:03]} Rg1+ {[%emt 0:00:06]} 66. Kf6 {[%emt 0:00:05]} Rf1+ {[%emt 0:00:11]} 67. Ke6 {[%emt 0:00:18]} Re1+ {[%emt 0:00:06]} 68. Kd5 {[%emt 0:00:21]} Rd1+ {[%emt 0:00:43]} 69. Kc4 {[%emt 0:00:13]} Rc1+ {[%emt 0:01:27]} 70. Kd3 {[%emt 0:00:21]} Rd1+ {[%emt 0:00:16]} 71. Kc2 {[%emt 0:00:07]} Rg1 {[%emt 0:00:04]} 72. g8=Q+ {[%emt 0:00:10]} 1-0

[Event "EYCC Girls-U18 2019"]
[Site "Bratislava"]
[Date "2019.08.07"]
[Round "6.2"]
[White "Goltseva, Ekaterina"]
[Black "Cramling Bellon, Anna"]
[Result "1-0"]
[ECO "E10"]
[WhiteElo "2304"]
[BlackElo "2030"]
[Annotator "NA"]
[PlyCount "96"]
[EventDate "2019.08.02"]
[EventType "swiss"]
[EventCountry "SVK"]
[SourceTitle "playchess.com"]
[Source "ChessBase"]
[SourceQuality "1"]
[TimeControl "40/5400+30:1800+30"]

1. d4 {[%emt 0:00:00]} Nf6 {[%emt 0:00:00]} 2. c4 {[%emt 0:00:00]} e6 {[%emt 0:00:00]} 3. Nf3 {[%emt 0:00:00]} d5 {[%emt 0:00:00]} 4. g3 {[%emt 0:00:06]} Bb4+ {[%emt 0:00:07]} 5. Bd2 {[%emt 0:00:24]} Bd6 {[%emt 0:00:07]} 6. Bg2 {[%emt 0:01:06]} c6 {[%emt 0:00:05]} 7. O-O {[%emt 0:03:46]} Nbd7 {[%emt 0:00:10]} 8. Nc3 {[%emt 0:07:07]} O-O {[%emt 0:06:34]} 9. Qc2 {[%emt 0:05:55]} dxc4 {[%emt 0:07:25]} 10. Bg5 {[%emt 0:18:37]} Qa5 {[%emt 0:22:16]} 11. e4 {[%emt 0:17:23]} e5 {[%emt 0:10:36]} 12. Qd2 {[%emt 0:05:00]} exd4 {[%emt 0:16:15]} 13. Nxd4 {[%emt 0:01:34]} Be5 {[%emt 0:06:19]} 14. Nf5 {[%emt 0:04:04]} Nc5 {[%emt 0:03:40]} 15. Qe2 {[%emt 0:21:35]} Bxf5 {[%emt 0:05:35]} 16. exf5 {[%emt 0:00:13]} Bxc3 {[%emt 0:00:22]} 17. bxc3 Qxc3 {[%emt 0:02:20]} 18. Rac1 {[%emt 0:04:44]} Qd3 {[%emt 0:00:08]} 19. Qe7 {[%emt 0:00:55]} Ncd7 {[%emt 0:04:44]} 20. Bxf6 {[%emt 0:01:32]} Nxf6 {[%emt 0:05:24]} 21. Qxb7 {[%emt 0:00:10]} c3 {[%emt 0:02:02]} 22. Rfd1 {[%emt 0:01:48]} Qe2 {[%emt 0:01:12]} 23. Qb3 {[%emt 0:04:38]} Rab8 {[%emt 0:04:55]} 24. Qxc3 {[%emt 0:00:26]} Rb2 {[%emt 0:00:30]} 25. Qf3 {[%emt 0:00:24]} Qxf3 {[%emt 0:01:05]} 26. Bxf3 {[%emt 0:00:03]} Rxa2 {[%emt 0:00:08]} 27. Rxc6 {[%emt 0:00:05]} Re8 {[%emt 0:00:56]} 28. Rc7 {[%emt 0:01:12]} a5 {[%emt 0:00:32]} 29. Ra7 {[%emt 0:00:51]} h6 {[%emt 0:00:26]} 30. Rc1 {[%emt 0:00:30]} Re5 {[%emt 0:00:32]} 31. Rc8+ {[%emt 0:00:22]} Re8 {[%emt 0:00:23]} 32. Rxe8+ {[%emt 0:00:30]} Nxe8 {[%emt 0:00:01]} 33. Ra8 {[%emt 0:00:05]} Kf8 {[%emt 0:00:52]} 34. Bc6 {[%emt 0:00:16]} Re2 {[%emt 0:00:20]} 35. Rxa5 {[%emt 0:01:24]} Re1+ {[%emt 0:00:26]} 36. Kg2 {[%emt 0:00:06]} Ke7 {[%emt 0:00:14]} 37. Bxe8 {[%emt 0:01:01]} Kxe8 {[%emt 0:00:01]} 38. f6 {[%emt 0:00:23]} gxf6 {[%emt 0:00:51]} 39. Ra8+ {[%emt 0:00:19]} Ke7 {[%emt 0:00:36]} 40. Rh8 {[%emt 0:00:00]} Re5 {[%emt 0:00:00]} 41. Rxh6 {[%emt 0:00:15]} Ke6 {[%emt 0:01:26]} 42. h4 {[%emt 0:03:10]} Re4 {[%emt 0:02:30]} 43. Rh8 {[%emt 0:01:01]} Kf5 {[%emt 0:01:30]} 44. Rg8 {[%emt 0:00:48]} Re5 {[%emt 0:08:03]} 45. h5 {[%emt 0:01:30]} Ke4 {[%emt 0:07:29]} 46. g4 {[%emt 0:00:30]} f5 {[%emt 0:04:09]} 47. h6 {[%emt 0:00:33]} fxg4 {[%emt 0:01:28]} 48. h7 {[%emt 0:00:11]} Kd5 1-0

[Event "EYCC Girls-U18 2019"]
[Site "Bratislava"]
[Date "2019.08.07"]
[Round "6.3"]
[White "Sargsyan, Anna M."]
[Black "Afonasieva, Anna"]
[Result "1-0"]
[ECO "D48"]
[WhiteElo "2229"]
[BlackElo "2370"]
[Annotator "NA"]
[PlyCount "83"]
[EventDate "2019.08.02"]
[EventType "swiss"]
[EventCountry "SVK"]
[SourceTitle "playchess.com"]
[Source "ChessBase"]
[SourceQuality "1"]
[TimeControl "40/5400+30:1800+30"]

1. d4 {[%emt 0:00:00]} d5 {[%emt 0:00:00]} 2. c4 {[%emt 0:00:00]} c6 {[%emt 0:00:00]} 3. Nc3 {[%emt 0:00:00]} Nf6 {[%emt 0:00:00]} 4. e3 {[%emt 0:00:04]} e6 {[%emt 0:00:00]} 5. Nf3 {[%emt 0:00:08]} Nbd7 {[%emt 0:00:00]} 6. Bd3 {[%emt 0:00:05]} dxc4 {[%emt 0:00:06]} 7. Bxc4 {[%emt 0:00:02]} b5 {[%emt 0:00:08]} 8. Bd3 {[%emt 0:00:04]} a6 {[%emt 0:02:12]} 9. a4 {[%emt 0:00:06]} b4 {[%emt 0:00:40]} 10. Ne4 {[%emt 0:00:04]} c5 {[%emt 0:00:12]} 11. O-O {[%emt 0:00:06]} Bb7 {[%emt 0:00:47]} 12. Ned2 {[%emt 0:00:45]} cxd4 {[%emt 0:03:39]} 13. exd4 {[%emt 0:01:37]} Be7 {[%emt 0:01:35]} 14. a5 {[%emt 0:00:28]} O-O {[%emt 0:02:51]} 15. Nc4 {[%emt 0:00:27]} Nb8 {[%emt 0:03:19]} 16. Qe2 {[%emt 0:05:02]} Nc6 {[%emt 0:05:16]} 17. Rd1 {[%emt 0:01:06]} h6 {[%emt 0:04:45]} 18. Bf4 {[%emt 0:06:09]} b3 {[%emt 0:10:18]} 19. Nb6 {[%emt 0:22:21]} Ra7 {[%emt 0:04:41]} 20. Rac1 {[%emt 0:08:47]} Bd6 {[%emt 0:05:04]} 21. Bd2 {[%emt 0:06:14]} Bc7 {[%emt 0:18:18]} 22. Rc5 {[%emt 0:01:35]} Qd6 {[%emt 0:11:21]} 23. Bc3 {[%emt 0:07:51]} Ne7 {[%emt 0:11:56]} 24. Ne5 {[%emt 0:06:48]} Ned5 {[%emt 0:06:15]} 25. Nxd5 {[%emt 0:02:06]} Nxd5 {[%emt 0:00:42]} 26. Bd2 {[%emt 0:01:14]} Qe7 {[%emt 0:06:10]} 27. Rdc1 {[%emt 0:02:42]} Bd6 {[%emt 0:00:48]} 28. Nc6 {[%emt 0:02:50]} Bxc6 {[%emt 0:01:04]} 29. Rxc6 {[%emt 0:00:02]} Bf4 {[%emt 0:01:14]} 30. Qe4 {[%emt 0:01:26]} f5 {[%emt 0:00:20]} 31. Qe2 {[%emt 0:00:27]} Qg5 {[%emt 0:00:34]} 32. Qxe6+ {[%emt 0:01:06]} Kh8 {[%emt 0:00:17]} 33. Rc8 {[%emt 0:00:12]} Ra8 {[%emt 0:01:07]} 34. Rxa8 {[%emt 0:00:06]} Rxa8 {[%emt 0:00:02]} 35. Qxd5 {[%emt 0:00:28]} Rd8 {[%emt 0:00:33]} 36. Bxf4 {[%emt 0:00:07]} Rxd5 {[%emt 0:00:07]} 37. Bxg5 {[%emt 0:00:04]} hxg5 {[%emt 0:00:04]} 38. g4 {[%emt 0:00:15]} Rxd4 {[%emt 0:00:52]} 39. Rc8+ {[%emt 0:00:25]} Kh7 {[%emt 0:00:14]} 40. Bxf5+ {[%emt 0:00:00]} g6 {[%emt 0:00:00]} 41. Rc7+ {[%emt 0:00:09]} Kh6 {[%emt 0:00:10]} 42. Rc6 {[%emt 0:00:36]} 1-0

[Event "EYCC Girls-U18 2019"]
[Site "Bratislava"]
[Date "2019.08.07"]
[Round "6.4"]
[White "Kucharska, Honorata"]
[Black "Muetsch, Annmarie"]
[Result "1/2-1/2"]
[ECO "B49"]
[WhiteElo "2054"]
[BlackElo "2266"]
[Annotator "NA"]
[PlyCount "75"]
[EventDate "2019.08.02"]
[EventType "swiss"]
[EventCountry "SVK"]
[SourceTitle "playchess.com"]
[Source "ChessBase"]
[SourceQuality "1"]
[TimeControl "40/5400+30:1800+30"]

1. e4 {[%emt 0:00:00]} c5 {[%emt 0:00:00]} 2. Nf3 {[%emt 0:00:00]} e6 {[%emt 0:00:00]} 3. d4 {[%emt 0:00:00]} cxd4 {[%emt 0:00:00]} 4. Nxd4 {[%emt 0:00:00]} Nc6 {[%emt 0:00:00]} 5. Nc3 {[%emt 0:00:30]} Qc7 {[%emt 0:00:04]} 6. Be3 {[%emt 0:00:40]} a6 {[%emt 0:00:10]} 7. Be2 {[%emt 0:00:29]} Nf6 {[%emt 0:00:38]} 8. O-O {[%emt 0:01:02]} Be7 {[%emt 0:01:17]} 9. a3 {[%emt 0:01:17]} d6 {[%emt 0:00:35]} 10. f4 {[%emt 0:00:37]} h5 {[%emt 0:02:17]} 11. Bf3 {[%emt 0:07:44]} Na5 {[%emt 0:08:51]} 12. Bf2 {[%emt 0:03:44]} Bd7 {[%emt 0:05:38]} 13. Re1 {[%emt 0:03:47]} Nc4 {[%emt 0:04:26]} 14. b3 {[%emt 0:03:53]} Na5 {[%emt 0:10:48]} 15. Na2 {[%emt 0:06:23]} g6 {[%emt 0:19:13]} 16. Nb4 {[%emt 0:04:50]} Rc8 {[%emt 0:09:02]} 17. c4 {[%emt 0:03:16]} O-O {[%emt 0:04:16]} 18. Qd3 {[%emt 0:05:22]} e5 {[%emt 0:03:02]} 19. Ne2 {[%emt 0:07:53]} b5 {[%emt 0:01:38]} 20. Rac1 {[%emt 0:10:39]} bxc4 {[%emt 0:01:24]} 21. bxc4 {[%emt 0:01:08]} Nxc4 {[%emt 0:04:56]} 22. Nc3 {[%emt 0:05:24]} Qb7 {[%emt 0:07:04]} 23. Ncd5 {[%emt 0:01:41]} Nxd5 {[%emt 0:00:06]} 24. Nxd5 {[%emt 0:00:12]} Bb5 {[%emt 0:00:25]} 25. Rb1 {[%emt 0:01:22]} Qd7 {[%emt 0:01:00]} 26. f5 {[%emt 0:04:05]} Bd8 {[%emt 0:05:05]} 27. Rb4 {[%emt 0:08:33]} Nb6 {[%emt 0:05:20]} 28. Rxb5 {[%emt 0:00:54]} Qxb5 {[%emt 0:00:07]} 29. Qxb5 {[%emt 0:00:04]} axb5 {[%emt 0:00:13]} 30. Nxb6 {[%emt 0:00:45]} Bxb6 {[%emt 0:00:05]} 31. Bxb6 {[%emt 0:00:03]} Rc3 {[%emt 0:00:54]} 32. fxg6 {[%emt 0:02:45]} fxg6 {[%emt 0:00:23]} 33. Ba5 {[%emt 0:00:13]} Rxa3 {[%emt 0:00:53]} 34. Bb4 {[%emt 0:00:07]} Rd3 {[%emt 0:02:10]} 35. Rb1 {[%emt 0:02:34]} Rd4 {[%emt 0:01:47]} 36. Bc3 {[%emt 0:04:32]} Rc4 {[%emt 0:00:32]} 37. Bb4 {[%emt 0:03:20]} Rd4 {[%emt 0:00:26]} 38. Bc3 {[%emt 0:01:29]} 1/2-1/2

[Event "EYCC Girls-U18 2019"]
[Site "Bratislava"]
[Date "2019.08.07"]
[Round "6.5"]
[White "Kochukova, Anna"]
[Black "Beydullayeva, Govhar"]
[Result "1-0"]
[ECO "C77"]
[WhiteElo "2148"]
[BlackElo "2282"]
[Annotator "NA"]
[PlyCount "123"]
[EventDate "2019.08.02"]
[EventType "swiss"]
[EventCountry "SVK"]
[SourceTitle "playchess.com"]
[Source "ChessBase"]
[SourceQuality "1"]
[TimeControl "40/5400+30:1800+30"]

1. e4 {[%emt 0:00:00]} e5 {[%emt 0:00:00]} 2. Nf3 {[%emt 0:00:00]} Nc6 {[%emt 0:00:00]} 3. Bb5 {[%emt 0:00:08]} a6 {[%emt 0:00:00]} 4. Ba4 {[%emt 0:00:18]} Nf6 {[%emt 0:00:05]} 5. d3 {[%emt 0:00:09]} d6 {[%emt 0:00:07]} 6. c3 {[%emt 0:00:16]} g6 {[%emt 0:00:06]} 7. O-O {[%emt 0:01:17]} Bg7 {[%emt 0:00:08]} 8. Nbd2 {[%emt 0:01:19]} O-O {[%emt 0:00:08]} 9. Re1 {[%emt 0:00:19]} b5 {[%emt 0:00:05]} 10. Bc2 {[%emt 0:00:16]} Bb7 {[%emt 0:00:02]} 11. a4 {[%emt 0:00:39]} b4 {[%emt 0:00:04]} 12. a5 {[%emt 0:00:29]} Rb8 {[%emt 0:00:02]} 13. Bb3 {[%emt 0:01:31]} Nd7 {[%emt 0:22:41]} 14. Nf1 {[%emt 0:01:55]} bxc3 {[%emt 0:10:11]} 15. bxc3 {[%emt 0:00:24]} Na7 {[%emt 0:01:13]} 16. Bg5 {[%emt 0:19:27]} Qe8 {[%emt 0:08:17]} 17. d4 {[%emt 0:14:01]} Nb5 {[%emt 0:07:32]} 18. Rc1 {[%emt 0:03:46]} Kh8 {[%emt 0:09:28]} 19. d5 {[%emt 0:15:06]} Nc5 {[%emt 0:02:31]} 20. Ba2 {[%emt 0:01:50]} h6 {[%emt 0:13:32]} 21. Bh4 {[%emt 0:02:33]} Bc8 {[%emt 0:03:12]} 22. c4 {[%emt 0:04:40]} Na7 {[%emt 0:01:13]} 23. Rb1 {[%emt 0:02:31]} Bd7 {[%emt 0:01:51]} 24. N3d2 {[%emt 0:03:59]} g5 {[%emt 0:05:34]} 25. Bg3 {[%emt 0:01:47]} f5 {[%emt 0:00:58]} 26. exf5 {[%emt 0:02:55]} Bxf5 {[%emt 0:00:08]} 27. Rxb8 {[%emt 0:00:27]} Qxb8 {[%emt 0:00:02]} 28. Bb1 {[%emt 0:00:47]} Bxb1 {[%emt 0:09:07]} 29. Qxb1 {[%emt 0:01:09]} Qxb1 {[%emt 0:00:58]} 30. Rxb1 {[%emt 0:01:25]} e4 {[%emt 0:00:12]} 31. Nb3 {[%emt 0:01:17]} Na4 {[%emt 0:02:36]} 32. Nfd2 {[%emt 0:01:22]} Nc3 {[%emt 0:01:02]} 33. Re1 {[%emt 0:00:53]} Rb8 {[%emt 0:00:05]} 34. f3 {[%emt 0:07:18]} exf3 {[%emt 0:00:35]} 35. gxf3 {[%emt 0:00:02]} Bf6 {[%emt 0:00:45]} 36. Bf2 {[%emt 0:04:10]} Nc8 {[%emt 0:00:08]} 37. Bd4 {[%emt 0:03:11]} Kg7 {[%emt 0:00:09]} 38. Bxf6+ {[%emt 0:01:15]} Kxf6 {[%emt 0:00:00]} 39. Re8 {[%emt 0:00:14]} Kf7 {[%emt 0:01:40]} 40. Rh8 {[%emt 0:00:00]} Nb1 {[%emt 0:00:00]} 41. Rh7+ {[%emt 0:05:53]} Ke8 {[%emt 0:14:42]} 42. Rxc7 {[%emt 0:02:33]} Ne7 {[%emt 0:00:16]} 43. Ra7 {[%emt 0:02:36]} Nf5 {[%emt 0:04:57]} 44. Rxa6 {[%emt 0:00:57]} Nxd2 {[%emt 0:01:16]} 45. Nxd2 {[%emt 0:00:02]} Rb2 {[%emt 0:00:06]} 46. Ne4 {[%emt 0:07:37]} Ne3 {[%emt 0:05:08]} 47. Nxd6+ {[%emt 0:06:42]} Kd7 {[%emt 0:00:05]} 48. Ne4 {[%emt 0:01:26]} Rg2+ {[%emt 0:02:32]} 49. Kh1 {[%emt 0:00:01]} Ra2 {[%emt 0:00:05]} 50. h4 {[%emt 0:00:41]} Nxc4 {[%emt 0:02:07]} 51. Ra7+ {[%emt 0:01:04]} Kc8 {[%emt 0:01:20]} 52. hxg5 {[%emt 0:03:30]} hxg5 {[%emt 0:00:00]} 53. d6 {[%emt 0:02:06]} Kb8 {[%emt 0:02:15]} 54. Re7 {[%emt 0:04:25]} Nxa5 {[%emt 0:04:18]} 55. Re8+ {[%emt 0:00:32]} Kb7 {[%emt 0:00:17]} 56. d7 {[%emt 0:00:01]} Nc6 {[%emt 0:00:03]} 57. d8=Q {[%emt 0:00:37]} Nxd8 {[%emt 0:00:01]} 58. Rxd8 {[%emt 0:00:01]} Kc7 {[%emt 0:00:10]} 59. Rd2 {[%emt 0:01:33]} Ra5 {[%emt 0:00:36]} 60. Kg2 {[%emt 0:00:16]} Re5 {[%emt 0:00:26]} 61. Kg3 {[%emt 0:00:15]} Rf5 {[%emt 0:00:03]} 62. Rd3 {[%emt 0:00:29]} 1-0

[Event "EYCC Girls-U18 2019"]
[Site "Bratislava"]
[Date "2019.08.07"]
[Round "6.6"]
[White "Antova, Gabriela"]
[Black "Grigorieva, Yulia"]
[Result "1/2-1/2"]
[ECO "D76"]
[WhiteElo "2257"]
[BlackElo "2096"]
[Annotator "NA"]
[PlyCount "115"]
[EventDate "2019.08.02"]
[EventType "swiss"]
[EventCountry "SVK"]
[SourceTitle "playchess.com"]
[Source "ChessBase"]
[SourceQuality "1"]
[TimeControl "40/5400+30:1800+30"]

1. d4 {[%emt 0:00:00]} Nf6 {[%emt 0:00:00]} 2. c4 {[%emt 0:00:00]} g6 {[%emt 0:00:00]} 3. Nf3 {[%emt 0:00:00]} Bg7 {[%emt 0:00:00]} 4. g3 {[%emt 0:00:00]} d5 {[%emt 0:00:09]} 5. cxd5 {[%emt 0:00:00]} O-O {[%emt 0:00:14]} 6. Bg2 {[%emt 0:00:05]} Nxd5 {[%emt 0:00:14]} 7. O-O {[%emt 0:00:09]} Nb6 {[%emt 0:00:20]} 8. Nc3 {[%emt 0:00:10]} Nc6 {[%emt 0:00:21]} 9. e3 {[%emt 0:00:11]} Re8 {[%emt 0:00:44]} 10. Nh4 {[%emt 0:00:11]} e5 {[%emt 0:00:51]} 11. d5 {[%emt 0:00:17]} Nb4 {[%emt 0:01:00]} 12. a3 {[%emt 0:00:21]} Na6 {[%emt 0:00:18]} 13. e4 {[%emt 0:00:15]} c6 {[%emt 0:05:34]} 14. Re1 {[%emt 0:00:19]} Nc7 {[%emt 0:08:53]} 15. Qb3 {[%emt 0:09:31]} Bf6 {[%emt 0:08:25]} 16. Nf3 {[%emt 0:24:36]} cxd5 {[%emt 0:03:33]} 17. exd5 {[%emt 0:01:33]} Ncxd5 {[%emt 0:04:16]} 18. Nxd5 {[%emt 0:12:04]} Qxd5 {[%emt 0:03:45]} 19. Qxd5 {[%emt 0:00:23]} Nxd5 {[%emt 0:00:05]} 20. Nxe5 {[%emt 0:00:16]} Nb6 {[%emt 0:11:07]} 21. Nf3 {[%emt 0:08:32]} Bf5 {[%emt 0:07:36]} 22. a4 {[%emt 0:15:29]} Nc4 {[%emt 0:11:14]} 23. Ra2 {[%emt 0:04:28]} Bb1 {[%emt 0:07:28]} 24. Ra1 {[%emt 0:00:01]} Bc2 {[%emt 0:00:45]} 25. Bf1 {[%emt 0:02:23]} Bb3 {[%emt 0:06:12]} 26. Rxe8+ {[%emt 0:07:27]} Rxe8 {[%emt 0:00:01]} 27. Bxc4 {[%emt 0:00:07]} Bxc4 {[%emt 0:00:38]} 28. Be3 {[%emt 0:00:01]} Bxb2 {[%emt 0:05:51]} 29. Rb1 {[%emt 0:00:02]} Bd5 {[%emt 0:01:10]} 30. Rxb2 {[%emt 0:02:27]} Bxf3 {[%emt 0:00:11]} 31. a5 {[%emt 0:05:49]} Re5 {[%emt 0:02:32]} 32. Ra2 {[%emt 0:00:06]} b5 {[%emt 0:03:31]} 33. axb6 {[%emt 0:01:16]} axb6 {[%emt 0:00:39]} 34. Kf1 {[%emt 0:02:52]} Rd5 {[%emt 0:04:41]} 35. Rd2 {[%emt 0:00:17]} b5 {[%emt 0:01:08]} 36. Rxd5 {[%emt 0:00:12]} Bxd5 {[%emt 0:00:04]} 37. Bd2 {[%emt 0:00:24]} f6 {[%emt 0:01:21]} 38. h4 {[%emt 0:00:10]} Kf7 {[%emt 0:00:28]} 39. Ke2 {[%emt 0:02:45]} Ke6 {[%emt 0:00:21]} 40. g4 {[%emt 0:00:00]} h5 {[%emt 0:00:00]} 41. gxh5 {[%emt 0:12:05]} gxh5 {[%emt 0:01:39]} 42. Ke3 {[%emt 0:00:20]} Ba2 {[%emt 0:02:56]} 43. Bc3 {[%emt 0:00:08]} Bb3 {[%emt 0:02:04]} 44. Bd4 {[%emt 0:00:33]} Bd1 {[%emt 0:00:48]} 45. Bc3 {[%emt 0:00:28]} Bg4 {[%emt 0:01:23]} 46. Kd4 {[%emt 0:02:23]} Kf5 {[%emt 0:01:44]} 47. Ke3 {[%emt 0:00:12]} Bd1 {[%emt 0:00:43]} 48. f3 {[%emt 0:00:12]} Bb3 {[%emt 0:01:36]} 49. Bb4 {[%emt 0:00:50]} Bd5 {[%emt 0:01:20]} 50. Bc3 {[%emt 0:00:25]} Bc6 {[%emt 0:01:56]} 51. Bb4 {[%emt 0:00:16]} Ke6 {[%emt 0:01:13]} 52. Bc3 {[%emt 0:00:12]} f5 {[%emt 0:01:51]} 53. f4 {[%emt 0:01:35]} Kd5 {[%emt 0:01:13]} 54. Bf6 {[%emt 0:00:32]} Kc4 {[%emt 0:02:11]} 55. Kd2 {[%emt 0:00:18]} Kb3 {[%emt 0:00:32]} 56. Kc1 {[%emt 0:00:08]} Be4 {[%emt 0:00:16]} 57. Be5 {[%emt 0:00:40]} b4 {[%emt 0:00:10]} 58. Bf6 {[%emt 0:00:10]} 1/2-1/2

[Event "EYCC Girls-U18 2019"]
[Site "Bratislava"]
[Date "2019.08.07"]
[Round "6.7"]
[White "Nilssen, Ellen Fredericia"]
[Black "Schneider, Jana"]
[Result "1/2-1/2"]
[ECO "D58"]
[WhiteElo "2155"]
[BlackElo "2216"]
[Annotator "NA"]
[PlyCount "76"]
[EventDate "2019.08.02"]
[EventType "swiss"]
[EventCountry "SVK"]
[SourceTitle "playchess.com"]
[Source "ChessBase"]
[SourceQuality "1"]
[TimeControl "40/5400+30:1800+30"]

1. d4 {[%emt 0:00:00]} Nf6 {[%emt 0:00:00]} 2. c4 {[%emt 0:00:00]} e6 {[%emt 0:00:00]} 3. Nf3 {[%emt 0:00:00]} d5 {[%emt 0:00:00]} 4. Nc3 {[%emt 0:00:00]} Be7 {[%emt 0:00:00]} 5. Bg5 {[%emt 0:00:00]} h6 {[%emt 0:00:08]} 6. Bh4 {[%emt 0:00:10]} O-O {[%emt 0:00:09]} 7. e3 {[%emt 0:00:06]} b6 {[%emt 0:00:10]} 8. Bd3 {[%emt 0:00:34]} dxc4 {[%emt 0:01:44]} 9. Bxc4 {[%emt 0:00:36]} Bb7 {[%emt 0:00:14]} 10. O-O {[%emt 0:03:13]} Nbd7 {[%emt 0:01:19]} 11. Qe2 {[%emt 0:03:56]} Ne4 {[%emt 0:07:37]} 12. Bxe7 {[%emt 0:02:58]} Qxe7 {[%emt 0:00:17]} 13. Nxe4 {[%emt 0:00:30]} Bxe4 {[%emt 0:00:08]} 14. Bd3 {[%emt 0:03:45]} Bb7 15. Rac1 {[%emt 0:06:20]} c5 {[%emt 0:03:25]} 16. Bb5 {[%emt 0:02:18]} cxd4 {[%emt 0:01:09]} 17. Rc7 {[%emt 0:08:00]} Bc8 {[%emt 0:01:04]} 18. Nxd4 {[%emt 0:11:45]} Qd8 {[%emt 0:02:41]} 19. Rc2 {[%emt 0:01:29]} Ne5 {[%emt 0:13:48]} 20. f4 {[%emt 0:11:51]} Ng6 {[%emt 0:00:51]} 21. Bc6 {[%emt 0:01:02]} Rb8 {[%emt 0:00:45]} 22. Be4 {[%emt 0:00:16]} Ne7 {[%emt 0:02:30]} 23. Rd1 {[%emt 0:00:09]} f5 {[%emt 0:11:46]} 24. Nxe6 {[%emt 0:08:37]} Bxe6 {[%emt 0:01:11]} 25. Rxd8 {[%emt 0:00:11]} Rbxd8 {[%emt 0:00:21]} 26. Bf3 {[%emt 0:01:49]} Bxa2 {[%emt 0:00:41]} 27. Rc7 {[%emt 0:00:24]} Rfe8 {[%emt 0:04:01]} 28. Qa6 {[%emt 0:05:14]} Bd5 {[%emt 0:00:31]} 29. Qxa7 {[%emt 0:00:20]} Bxf3 {[%emt 0:01:41]} 30. gxf3 {[%emt 0:02:13]} Kf8 {[%emt 0:00:56]} 31. Qxb6 {[%emt 0:02:28]} Nd5 {[%emt 0:01:37]} 32. Qc5+ {[%emt 0:01:18]} Kg8 {[%emt 0:00:09]} 33. Ra7 {[%emt 0:00:53]} Nxe3 {[%emt 0:00:48]} 34. Qc7 {[%emt 0:00:59]} Rd1+ {[%emt 0:00:40]} 35. Kf2 {[%emt 0:00:05]} Rd2+ {[%emt 0:03:45]} 36. Ke1 {[%emt 0:04:20]} Nc4+ {[%emt 0:00:18]} 37. Kf1 {[%emt 0:00:30]} Ne3+ {[%emt 0:00:13]} 38. Ke1 {[%emt 0:00:55]} Nc4+ {[%emt 0:00:23]} 1/2-1/2